fUSD/lending_fUSD_20240616
["ID","MTS","AMOUNT","RATE_DAILY","PERIOD"]
[329649874,1718541061005,-500.0,0.00022739,3]
[329649875,1718541061017,-150.98997064,0.00022739,3]
[329649876,1718541072360,200.0,8.05e-05,2]
[329649877,1718541072394,162.81476569,8.05e-05,2]
[329649878,1718541115337,299.86157995,0.0001,2]
[329649879,1718541123046,9383.8810271,8.05e-05,2]
[329649883,1718541167158,150.0,8.05e-05,2]
[329649884,1718541167191,150.0,8.05e-05,2]
[329649885,1718541167246,5.0,8.05e-05,2]
[329649888,1718541271539,150.0,6.94e-05,2]
[329649889,1718541271575,150.0,6.94e-05,2]
[329649890,1718541271627,150.0,6.94e-05,2]
[329649891,1718541271671,150.0,6.94e-05,2]
[329649892,1718541271725,150.0,6.94e-05,2]
[329649893,1718541271753,150.0,6.94e-05,2]
[329649894,1718541271789,150.0,6.94e-05,2]
[329649895,1718541271816,150.0,6.94e-05,2]
[329649896,1718541275325,-521.351022,0.00010802,2]
[329649897,1718541279418,-150.0,0.00010857,2]
[329649898,1718541279459,-300.0,0.00010857,2]
[329649899,1718541279515,-300.0,0.00010857,2]
[329649900,1718541279567,-1250.0,0.00010858,2]
[329649901,1718541292685,1500.0,8.05e-05,2]
[329649903,1718541427654,150.0,8.05e-05,2]
[329649904,1718541427711,150.0,8.05e-05,2]
[329649905,1718541445097,150.0,8.05e-05,2]
[329649906,1718541445135,150.0,8.05e-05,2]
[329649907,1718541465047,150.0,8.05e-05,2]
[329649908,1718541465105,150.0,8.05e-05,2]
[329649909,1718541481206,150.0,8.05e-05,2]
[329649910,1718541481262,150.0,8.05e-05,2]
[329649911,1718541487455,-150.0,0.00010801,2]
[329649912,1718541521978,-294.87759736,0.00010756,2]
[329649926,1718541962106,-188.23605895,0.00010849,2]
[329649927,1718541962588,-1000.0,0.00010848,2]
[329649928,1718541994015,-318.46108444,0.00010851,2]
[329649929,1718541994716,-192.53891556,0.00010851,2]
[329649931,1718542013511,-2072.02896275,0.00010756,2]
[329649932,1718542025966,-290.64471704,0.00010853,2]
[329649933,1718542027409,-803.25319638,0.00010853,2]
[329649935,1718542035405,-885.3919522,0.00010856,2]
[329649936,1718542035447,-150.0,0.00010857,2]
[329649937,1718542035693,-300.0,0.00010857,2]
[329649938,1718542035742,-300.0,0.00010857,2]
[329649939,1718542035784,-1775.45368803,0.00010858,2]
[329649940,1718542043740,-1764.29265017,0.00010851,2]
[329649941,1718542044815,-790.91994518,0.00010851,2]
[329649942,1718542061434,-1764.29265017,0.00010851,2]
[329649943,1718542084747,313.05138691,0.000273,60]
[329649944,1718542144148,261.25057147,0.000273,60]
[329649945,1718542166133,-2915.1336,0.00010851,2]
[329649946,1718542174149,5144.13749604,0.00010751,2]
[329649952,1718542234156,-3466.21653567,0.00010851,2]
[329649953,1718542234179,-150.0,0.00010857,2]
[329649954,1718542234197,-167.99,0.00011003,2]
[329649955,1718542234217,-155.0,0.00011798,2]
[329649956,1718542234229,-1000.0,0.00011798,2]
[329649957,1718542234246,-158.0,0.00011799,2]
[329649958,1718542234468,-16634.70142189,0.000118,2]
[329649959,1718542234508,-210.0,0.00011943,2]
[329649960,1718542234525,-4415.36478065,0.000126,2]
[329649961,1718542234548,-1000.0,0.00012979,2]
[329649962,1718542234562,-28630.29506476,0.0001298,2]
[329649963,1718542234578,-224.11,0.00013137,2]
[329649964,1718542234597,-293.0,0.00013137,2]
[329649965,1718542234621,-692.38,0.00013353,2]
[329649966,1718542234641,-258.12664717,0.000139,2]
[329649967,1718542234670,-450.0,0.0001399,3]
[329649968,1718542234695,-207.48520993,0.0001399,2]
[329649969,1718542234714,-1043.57163077,0.00014,2]
[329649970,1718542234729,-39536.46382732,0.00014,2]
[329649971,1718542234777,-966.43463374,0.00014,2]
[329649972,1718542234796,-463.61871879,0.00014,2]
[329649973,1718542235061,-6310.96790771,0.00014,2]
[329649974,1718542235093,-1146.77386505,0.00014,2]
[329649975,1718542235125,-353.79,0.00014,2]
[329649976,1718542235139,-118822.08981995,0.00014,2]
[329649977,1718542235208,-2852.80510775,0.00014,2]
[329649978,1718542235248,-739.69628748,0.00014,2]
[329649979,1718542235278,-6827.34329163,0.00014,2]
[329649980,1718542235594,-968.08911481,0.00014,2]
[329649982,1718542235607,-7177.32411265,0.00014,2]
[329649989,1718542240089,-261.37128171,0.00014,2]
[329649990,1718542240976,-2702.22081626,0.00014,2]
[329649991,1718542241057,-4259.9738215,0.00014,2]
[329649992,1718542241073,-11064.64326729,0.00014,2]
[329649993,1718542241123,-312.38811295,0.00014,2]
[329649994,1718542241151,-1975.816194,0.00014,2]
[329650070,1718542244310,-8889.91640812,0.00014,2]
[329650072,1718542244333,-5956.50683529,0.00014,2]
[329650086,1718542244669,-476360.59669335,0.00014,2]
[329650087,1718542244700,-707.28,0.00014,2]
[329650088,1718542244716,-250.0,0.00014018,2]
[329650089,1718542244743,-199.71,0.00014029,2]
[329650090,1718542244756,-17646.56,0.00014133,2]
[329650091,1718542244795,-250.0,0.0001418,2]
[329650092,1718542244807,-835.83,0.00014343,2]
[329650093,1718542244818,-411.0,0.00014451,2]
[329650094,1718542244832,-10134.29581826,0.00015,2]
[329650095,1718542244865,-17591.2557147,0.00015,2]
[329650096,1718542244895,-72597.95434351,0.00015,2]
[329650097,1718542245221,-444.24779552,0.00015,2]
[329650098,1718542245448,-6644.55524363,0.00015,2]
[329650099,1718542245467,-7088.54155038,0.00015,2]
[329650100,1718542245484,-259.8,0.00015,2]
[329650101,1718542245739,-406558.0431376,0.00015,2]
[329650102,1718542245751,-2380.74811568,0.00015228,2]
[329650103,1718542245768,-692.38,0.00015617,2]
[329650104,1718542245790,-2380.74811563,0.00016016,2]
[329650105,1718542245805,-786.0,0.000162,2]
[329650106,1718542245846,-3373.0,0.000162,2]
[329650107,1718542245865,-1000.0,0.00016201,2]
[329650108,1718542245877,-150.88,0.00016342,2]
[329650109,1718542245890,-2380.74811563,0.00016805,2]
[329650110,1718542245902,-2488.75759572,0.00017,2]
[329650111,1718542245917,-835.83,0.00017083,2]
[329650112,1718542245931,-300.0,0.00017483,2]
[329650113,1718542245942,-2380.74811563,0.00017593,2]
[329650114,1718542245953,-1830.0,0.00017665,2]
[329650115,1718542245993,-383.933,0.00017665,2]
[329650116,1718542246010,-1275.012,0.00017665,2]
[329650117,1718542246022,-515.15,0.00017665,2]
[329650118,1718542246034,-547.0,0.00017665,2]
[329650119,1718542246050,-3196.0,0.00017665,2]
[329650120,1718542246068,-5791.0,0.00017665,2]
[329650121,1718542246081,-5161.0,0.00017665,2]
[329650122,1718542246093,-211.0,0.00017665,2]
[329650123,1718542246113,-290.0,0.00017665,2]
[329650124,1718542246125,-264.847,0.00017665,2]
[329650125,1718542246135,-22214.407,0.00017665,2]
[329650126,1718542246146,-154.996,0.00017665,2]
[329650127,1718542246159,-1197.0,0.00017665,2]
[329650128,1718542246174,-692.38,0.00017881,2]
[329650129,1718542246196,-155.0,0.00018,2]
[329650130,1718542246212,-1461.24167935,0.00018,2]
[329650131,1718542246240,-1000.0,0.00018226,2]
[329650132,1718542246253,-2380.74811563,0.00018381,2]
[329650133,1718542246265,-500.0,0.000185,2]
[329650134,1718542246278,-2380.74811563,0.0001917,2]
[329650135,1718542246305,-557.10430728,0.00019178,2]
[329650136,1718542246330,-377.02542168,0.00019178,2]
[329650137,1718542246346,-62573.08492503,0.00019725,2]
[329650138,1718542246357,-835.83,0.00019823,2]
[329650139,1718542246372,-500.0,0.00019936,2]
[329650140,1718542246396,-500.0,0.00019936,2]
[329650141,1718542246419,-2380.74811563,0.00019958,2]
[329650142,1718542246445,-446.34692615,0.0002,2]
[329650143,1718542246456,-182.70852254,0.0002,2]
[329650144,1718542246477,-4304.69771012,0.0002,2]
[329650145,1718542246658,-1.43472013,0.0002,2]
[329650146,1718542246734,-748.724,0.0002,2]
[329650147,1718542246780,-1211.25875993,0.0002,2]
[329650148,1718542246920,-2013.30335335,0.0002,2]
[329650149,1718542246939,-226.81877563,0.000201,2]
[329650150,1718542246955,-692.38,0.00020145,2]
[329650151,1718542246975,-1000.0,0.00020251,2]
[329650152,1718542246990,-400.0,0.00020665,2]
[329650153,1718542247007,-2380.74811563,0.00020747,2]
[329650154,1718542247026,-5000.0,0.00021,2]
[329650155,1718542247045,-500.0,0.00021032,2]
[329650157,1718542247058,-500.0,0.00021032,2]
[329650159,1718542247090,-1100.0,0.00021306,2]
[329650160,1718542247105,-800.0,0.00021306,2]
[329650161,1718542247117,-2380.74811563,0.00021535,2]
[329650163,1718542247131,-29999.99,0.00021757,2]
[329650165,1718542247144,-2352.2200672,0.00021757,2]
[329650167,1718542247189,-3264.60654433,0.00021757,2]
[329650169,1718542247236,-617.88338847,0.00021757,2]
[329650170,1718542247275,-1265.27575508,0.00021757,2]
[329650171,1718542247298,-2416.50341909,0.00021757,2]
[329650172,1718542247312,-26318.21082583,0.00021757,2]
[329650173,1718542247352,-5058.66037569,0.00021757,2]
[329650174,1718542247380,-14941.32962431,0.00021757,2]
[329650176,1718542247421,-9999.99,0.00021757,2]
[329650177,1718542247439,-4417.99,0.00021757,2]
[329650178,1718542247468,-274.18,0.00021808,3]
[329650179,1718542247514,-1100.0,0.00021854,2]
[329650180,1718542247529,-800.0,0.00021854,2]
[329650181,1718542247559,-865.02339688,0.00021915,2]
[329650182,1718542247572,-500.0,0.00021917,2]
[329650183,1718542247605,-500.0,0.00021917,2]
[329650184,1718542247617,-510.11238896,0.00021917,2]
[329650185,1718542247646,-500.0,0.00021917,2]
[329650186,1718542247660,-500.0,0.00021917,2]
[329650187,1718542247688,-596.79,0.00021917,2]
[329650188,1718542247699,-500.0,0.00021917,2]
[329650189,1718542247725,-500.0,0.00021917,2]
[329650190,1718542247760,-500.0,0.00021917,2]
[329650191,1718542247778,-500.0,0.00021917,2]
[329650192,1718542247821,-500.0,0.00021917,2]
[329650193,1718542247833,-500.0,0.00021917,2]
[329650194,1718542247868,-500.0,0.00021917,2]
[329650195,1718542247888,-500.0,0.00021917,2]
[329650196,1718542247903,-500.0,0.00021917,2]
[329650197,1718542247936,-500.0,0.00021917,2]
[329650198,1718542247949,-500.0,0.00021917,2]
[329650199,1718542247963,-500.0,0.00021917,2]
[329650200,1718542247999,-500.0,0.00021917,2]
[329650201,1718542248055,-500.0,0.00021917,2]
[329650202,1718542248155,-500.0,0.00021917,2]
[329650203,1718542248173,-500.0,0.00021917,2]
[329650204,1718542248190,-500.0,0.00021917,2]
[329650205,1718542248217,-500.0,0.00021917,2]
[329650206,1718542248248,-500.0,0.00021917,2]
[329650207,1718542248278,-500.0,0.00021917,2]
[329650208,1718542248309,-500.0,0.00021917,2]
[329650209,1718542248322,-500.0,0.00021917,2]
[329650210,1718542248340,-500.0,0.00021917,2]
[329650211,1718542248363,-500.0,0.00021917,2]
[329650212,1718542248384,-500.0,0.00021917,2]
[329650213,1718542248407,-500.0,0.00021917,2]
[329650214,1718542248424,-500.0,0.00021917,2]
[329650215,1718542248456,-500.0,0.00021917,2]
[329650216,1718542248476,-500.0,0.00021917,2]
[329650217,1718542248493,-500.0,0.00021917,2]
[329650218,1718542248504,-500.0,0.00021917,2]
[329650219,1718542248519,-500.0,0.00021917,2]
[329650220,1718542248533,-500.0,0.00021917,2]
[329650221,1718542248548,-500.0,0.00021917,2]
[329650222,1718542248568,-500.0,0.00021917,2]
[329650223,1718542248580,-500.0,0.00021917,2]
[329650224,1718542248595,-500.0,0.00021917,2]
[329650225,1718542248608,-156.67,0.00021917,2]
[329650226,1718542248634,-366.57457367,0.00021917,2]
[329650227,1718542248649,-664.42,0.00021917,2]
[329650228,1718542248689,-500.0,0.00021917,2]
[329650229,1718542248704,-471.36088015,0.00021917,2]
[329650230,1718542248720,-500.0,0.00021917,2]
[329650231,1718542248734,-505.69,0.00021917,2]
[329650232,1718542248765,-500.0,0.00021917,2]
[329650233,1718542248816,-500.0,0.00021917,2]
[329650234,1718542248828,-500.0,0.00021917,2]
[329650235,1718542248885,-500.0,0.00021917,2]
[329650236,1718542248900,-500.0,0.00021917,2]
[329650237,1718542248947,-500.0,0.00021917,2]
[329650238,1718542248987,-500.0,0.00021917,2]
[329650239,1718542249008,-500.0,0.00021917,2]
[329650240,1718542249023,-540.02956151,0.00021917,2]
[329650241,1718542249064,-500.0,0.00021917,2]
[329650242,1718542249077,-533.61,0.00021917,2]
[329650243,1718542249094,-500.0,0.00021917,2]
[329650244,1718542249124,-500.0,0.00021917,2]
[329650245,1718542249154,-500.0,0.00021917,2]
[329650246,1718542249172,-500.0,0.00021917,2]
[329650247,1718542249217,-500.0,0.00021917,2]
[329650248,1718542249237,-500.0,0.00021917,2]
[329650249,1718542249265,-500.0,0.00021917,2]
[329650250,1718542249294,-500.0,0.00021917,2]
[329650251,1718542249305,-609.66,0.00021917,2]
[329650252,1718542249346,-500.0,0.00021917,2]
[329650253,1718542249373,-500.0,0.00021917,2]
[329650254,1718542249407,-500.0,0.00021917,2]
[329650255,1718542249429,-1698.48,0.00021917,2]
[329650256,1718542249448,-500.0,0.00021917,2]
[329650257,1718542249484,-500.0,0.00021917,2]
[329650258,1718542249515,-2246.02,0.00021917,2]
[329650259,1718542249531,-4078.21,0.00021917,2]
[329650260,1718542249555,-500.0,0.00021917,2]
[329650261,1718542249584,-500.0,0.00021917,2]
[329650262,1718542249598,-1193.48,0.00021917,2]
[329650263,1718542249616,-836.0,0.00021917,2]
[329650264,1718542249640,-16000.62,0.00021917,2]
[329650265,1718542249655,-500.0,0.00021917,2]
[329650266,1718542249672,-8356.02,0.00021917,2]
[329650267,1718542249682,-500.0,0.00021917,2]
[329650268,1718542249725,-1207.96,0.00021917,2]
[329650269,1718542249761,-5894.06,0.00021917,2]
[329650270,1718542249773,-664.85,0.00021917,2]
[329650271,1718542249799,-500.0,0.00021917,2]
[329650272,1718542249811,-500.0,0.00021917,2]
[329650273,1718542249825,-500.0,0.00021917,2]
[329650274,1718542249848,-500.0,0.00021917,2]
[329650275,1718542249861,-620.08,0.00021917,2]
[329650276,1718542249891,-898.3,0.00021917,2]
[329650277,1718542249918,-2815.55,0.00021917,2]
[329650278,1718542249931,-500.0,0.00021917,2]
[329650279,1718542249944,-920.2,0.00021917,2]
[329650280,1718542249958,-503.5,0.00021917,2]
[329650281,1718542249987,-589.03,0.00021917,2]
[329650282,1718542250000,-500.0,0.00021917,2]
[329650283,1718542250022,-554.33,0.00021917,2]
[329650284,1718542250039,-939.55,0.00021917,2]
[329650285,1718542250050,-611.85,0.00021917,2]
[329650286,1718542250062,-500.0,0.00021917,2]
[329650287,1718542250076,-502.7,0.00021917,2]
[329650288,1718542250088,-500.0,0.00021917,2]
[329650289,1718542250111,-1189.41,0.00021917,2]
[329650290,1718542250127,-594.02,0.00021917,2]
[329650291,1718542250143,-500.0,0.00021917,2]
[329650292,1718542250161,-3268.08,0.00021917,2]
[329650293,1718542250175,-1797.78,0.00021917,2]
[329650294,1718542250189,-719.57,0.00021917,2]
[329650295,1718542250200,-1817.61,0.00021917,2]
[329650296,1718542250216,-500.0,0.00021917,2]
[329650297,1718542250242,-500.0,0.00021917,2]
[329650298,1718542250261,-1554.2,0.00021917,2]
[329650299,1718542250302,-500.0,0.00021917,2]
[329650300,1718542250327,-500.0,0.00021917,2]
[329650301,1718542250343,-951.31,0.00021917,2]
[329650302,1718542250357,-500.0,0.00021917,2]
[329650303,1718542250369,-1619.23,0.00021917,2]
[329650304,1718542250386,-695.17,0.00021917,2]
[329650305,1718542250397,-500.0,0.00021917,2]
[329650306,1718542250410,-594.5991888,0.00021917,2]
[329650307,1718542250491,-1252.94,0.00021917,2]
[329650308,1718542250509,-902.2,0.00021917,2]
[329650309,1718542250524,-500.0,0.00021917,2]
[329650310,1718542250540,-1051.76,0.00021917,2]
[329650311,1718542250567,-879.24,0.00021917,2]
[329650312,1718542250588,-598.37,0.00021917,2]
[329650313,1718542250604,-1733.84,0.00021917,2]
[329650314,1718542250616,-707.26,0.00021917,2]
[329650315,1718542250628,-677.72,0.00021917,2]
[329650316,1718542250640,-528.02827637,0.00021917,2]
[329650317,1718542250654,-700.57,0.00021917,2]
[329650318,1718542250668,-500.0,0.00021917,2]
[329650319,1718542250684,-1676.27,0.00021917,2]
[329650320,1718542250712,-628.03,0.00021917,2]
[329650321,1718542250728,-500.0,0.00021917,2]
[329650322,1718542250741,-2534.08,0.00021917,2]
[329650323,1718542250757,-1571.57,0.00021917,2]
[329650324,1718542250788,-500.0,0.00021917,2]
[329650325,1718542250835,-1666.75,0.00021917,2]
[329650326,1718542250868,-500.0,0.00021917,2]
[329650327,1718542250901,-1957.11,0.00021917,2]
[329650328,1718542250924,-2013.23370066,0.00021917,2]
[329650329,1718542251054,-1660.76629934,0.00021917,2]
[329650330,1718542251090,-500.0,0.00021917,2]
[329650331,1718542251101,-1982.81,0.00021917,2]
[329650332,1718542251112,-1063.21,0.00021917,2]
[329650333,1718542251168,-1044.22,0.00021917,2]
[329650335,1718542251180,-500.0,0.00021917,2]
[329650337,1718542251210,-500.0,0.00021917,2]
[329650339,1718542251236,-500.0,0.00021917,2]
[329650342,1718542251250,-500.0,0.00021917,2]
[329650343,1718542251262,-885.09,0.00021917,2]
[329650345,1718542251273,-500.0,0.00021917,2]
[329650347,1718542251296,-1996.0,0.00021917,2]
[329650348,1718542251307,-633.29,0.00021917,2]
[329650350,1718542251319,-500.0,0.00021917,2]
[329650352,1718542251336,-790.09,0.00021917,2]
[329650354,1718542251366,-500.0,0.00021917,2]
[329650355,1718542251441,-717.98,0.00021917,2]
[329650356,1718542251453,-593.01,0.00021917,2]
[329650357,1718542251464,-1020.61,0.00021917,2]
[329650358,1718542251478,-1259.41,0.00021917,2]
[329650359,1718542251494,-500.0,0.00021917,2]
[329650360,1718542251528,-503.7,0.00021917,2]
[329650361,1718542251540,-500.0,0.00021917,2]
[329650362,1718542251553,-1091.94,0.00021917,2]
[329650363,1718542251568,-1388.3,0.00021917,2]
[329650364,1718542251593,-500.0,0.00021917,2]
[329650365,1718542251620,-500.0,0.00021917,2]
[329650366,1718542251639,-500.0,0.00021917,2]
[329650367,1718542251652,-660.95,0.00021917,2]
[329650368,1718542251681,-601.97,0.00021917,2]
[329650369,1718542251698,-634.07,0.00021917,2]
[329650370,1718542251715,-846.26,0.00021917,2]
[329650371,1718542251735,-500.0,0.00021917,2]
[329650372,1718542251755,-564.03,0.00021917,2]
[329650373,1718542251797,-500.0,0.00021917,2]
[329650374,1718542251823,-348.29370063,0.00021917,2]
[329650375,1718542251884,-168.92629937,0.00021917,2]
[329650376,1718542251930,-231.14853446,0.00021917,2]
[329650377,1718542252451,-599.27979208,0.00014999,2]
[329650378,1718542252466,-400.72020792,0.00014999,2]
[329650379,1718542252480,-1123.06254173,0.00021917,2]
[329650380,1718542252503,-154.53892381,0.00021917,2]
[329650381,1718542252517,-764.21786619,0.00021917,2]
[329650382,1718542252550,-176.00213381,0.00021917,2]
[329650383,1718542252568,-1678.46,0.00021917,2]
[329650384,1718542252579,-5507.91,0.00021917,2]
[329650385,1718542252592,-790.06,0.00021917,2]
[329650386,1718542252603,-4737.26789374,0.00021917,2]
[329650387,1718542252639,-250.10479714,0.00021917,2]
[329650388,1718542252659,-696.31627192,0.00021917,2]
[329650389,1718542252689,-1249.2110372,0.00021917,2]
[329650390,1718542252708,-500.0,0.00021917,2]
[329650391,1718542252719,-448.58571391,0.00021917,2]
[329650392,1718542252805,-51.41428609,0.00021917,2]
[329650393,1718542252819,-320.51450918,0.00021917,2]
[329650394,1718542270147,22122.47627717,0.00010751,2]
[329650395,1718542357306,828.29871035,0.0001065,2]
[329650396,1718542362193,828.29871034,0.00010651,2]
[329650397,1718542367311,828.29871034,0.00010651,2]
[329650401,1718542432684,155245.03040978,0.00010651,2]
[329650406,1718542612892,-292.09637223,0.0002739,30]
[329650407,1718542612950,-2000.0,0.00027397,30]
[329650408,1718542613003,-1208.0,0.00027424,30]
[329650409,1718542613067,-1799.48990321,0.00028,30]
[329650410,1718542613125,-166.66666667,0.00028356,30]
[329650411,1718542613168,-323.95725158,0.00029,30]
[329650412,1718542613203,-1800.0,0.00029,30]
[329650413,1718542613253,-6014.03250463,0.000298,30]
[329650414,1718542613292,-909.61,0.00029808,30]
[329650415,1718542613333,-377.24144064,0.0002988,30]
[329650416,1718542613381,-150.0,0.00029975,120]
[329650417,1718542613419,-1000.0,0.0003,30]
[329650418,1718542613451,-250.0,0.0003,30]
[329650419,1718542613494,-250.0,0.0003,30]
[329650420,1718542613534,-250.0,0.0003,30]
[329650421,1718542613586,-287.76898905,0.0003,30]
[329650422,1718542613634,-1800.0,0.0003,31]
[329650423,1718542613671,-119969.8089477,0.0003,30]
[329650424,1718542613719,-200.0,0.0003,30]
[329650425,1718542613781,-367.71971897,0.0003,120]
[329650426,1718542613842,-500.0,0.0003,120]
[329650427,1718542613900,-369.33,0.0003,30]
[329650428,1718542613947,-890.05263808,0.0003,120]
[329650429,1718542614017,-200.0,0.00030137,30]
[329650430,1718542614108,-1500.0,0.00030137,30]
[329650431,1718542614200,-150.0,0.00030322,120]
[329650432,1718542614257,-203.909543,0.00030499,120]
[329650433,1718542614309,-1000.0,0.00030499,120]
[329650434,1718542614350,-302.855308,0.00030499,120]
[329650435,1718542614439,-18131.960699,0.000305,30]
[329650436,1718542614491,-375.0,0.00030886,120]
[329650437,1718542614531,-1800.0,0.00031,32]
[329650438,1718542614582,-296.279952,0.00031,30]
[329650439,1718542614649,-165.82174003,0.000314,30]
[329650440,1718542614687,-1500.0,0.00031506,90]
[329650441,1718542614748,-462.49551564,0.000317,30]
[329650442,1718542614792,-1500.0,0.0003178,90]
[329650443,1718542614830,-1000.0,0.00031999,120]
[329650444,1718542614868,-1402.46730112,0.00032,60]
[329650445,1718542614910,-1800.0,0.00032,33]
[329650446,1718542614947,-1000.0,0.00032,35]
[329650447,1718542614984,-500.0,0.00032,120]
[329650448,1718542615033,-1500.0,0.00032054,90]
[329650449,1718542615106,-150.0,0.00032256,120]
[329650450,1718542615161,-1500.0,0.00032328,90]
[329650451,1718542615204,-257.80408994,0.00032393,40]
[329650452,1718542615295,-1500.0,0.00032602,90]
[329650453,1718542615355,-375.0,0.00032816,120]
[329650454,1718542615405,-322.26025573,0.00032876,30]
[329650455,1718542615454,-839.53,0.00032876,120]
[329650456,1718542615495,-839.53,0.00032876,120]
[329650457,1718542615535,-839.53,0.00032876,120]
[329650458,1718542615576,-839.53,0.00032876,120]
[329650459,1718542615636,-839.53,0.00032876,120]
[329650460,1718542615700,-839.53,0.00032876,120]
[329650461,1718542615755,-839.53,0.00032876,120]
[329650462,1718542615805,-839.53,0.00032876,120]
[329650463,1718542615867,-839.53,0.00032876,120]
[329650464,1718542615917,-839.53,0.00032876,120]
[329650465,1718542615966,-839.53,0.00032876,120]
[329650466,1718542616009,-839.53,0.00032876,120]
[329650467,1718542616041,-839.53,0.00032876,120]
[329650468,1718542616098,-839.53,0.00032876,120]
[329650469,1718542616137,-839.53,0.00032876,120]
[329650470,1718542616192,-839.53,0.00032876,120]
[329650471,1718542616235,-839.53,0.00032876,120]
[329650472,1718542616268,-839.53,0.00032876,120]
[329650473,1718542616486,-839.53,0.00032876,120]
[329650474,1718542616517,-839.53,0.00032876,120]
[329650475,1718542616566,-839.53,0.00032876,120]
[329650476,1718542616608,-839.53,0.00032876,120]
[329650477,1718542616663,-839.53,0.00032876,120]
[329650478,1718542616701,-839.54491912,0.00032876,120]
[329650479,1718542616762,-200.0,0.00032876,30]
[329650480,1718542616794,-200.0,0.00032876,30]
[329650481,1718542616840,-200.0,0.00032876,30]
[329650482,1718542616870,-200.0,0.00032876,30]
[329650483,1718542616911,-200.0,0.00032876,30]
[329650484,1718542616958,-200.0,0.00032876,30]
[329650485,1718542616996,-200.0,0.00032876,30]
[329650486,1718542617038,-200.0,0.00032876,30]
[329650487,1718542617088,-200.0,0.00032876,30]
[329650488,1718542617154,-200.0,0.00032876,30]
[329650489,1718542617233,-200.0,0.00032876,30]
[329650490,1718542617277,-200.0,0.00032876,30]
[329650491,1718542617325,-200.0,0.00032876,30]
[329650492,1718542617364,-200.0,0.00032876,30]
[329650493,1718542617407,-200.0,0.00032876,30]
[329650494,1718542617456,-200.0,0.00032876,30]
[329650495,1718542617489,-300.0,0.00032876,30]
[329650496,1718542617525,-472.53136555,0.00032876,120]
[329650497,1718542617560,-202.49140877,0.00032877,30]
[329650498,1718542617597,-1367.97156267,0.000329,30]
[329650499,1718542617640,-880.1650065,0.000329,30]
[329650500,1718542617679,-159.0687744,0.00033,120]
[329650501,1718542617745,-536.24704637,0.00033,120]
[329650502,1718542617789,-347.7,0.00033151,120]
[329650503,1718542617837,-2416.0,0.00033218,120]
[329650504,1718542617873,-463.367097,0.00033499,120]
[329650505,1718542617906,-4532.990174,0.000335,30]
[329650506,1718542617951,-150.0,0.00033529,120]
[329650507,1718542617992,-150.0,0.00033914,120]
[329650508,1718542618043,-500.0,0.00034,120]
[329650509,1718542618080,-1000.0,0.00034,120]
[329650510,1718542618129,-150.0,0.00034145,120]
[329650511,1718542618166,-150.0,0.00034389,120]
[329650512,1718542618200,-375.0,0.00034747,120]
[329650513,1718542618285,-909.61,0.0003479,30]
[329650514,1718542618346,-603.94609441,0.000348,30]
[329650515,1718542618444,-150.0,0.00034851,120]
[329650516,1718542618489,-169.95651642,0.00034999,120]
[329650517,1718542618538,-229.82544577,0.00035,30]
[329650518,1718542618572,-2192.3670895,0.00035,30]
[329650519,1718542618611,-570.0,0.00035,120]